Workbook

Sheet Intro

Sheet Tablet Gen
A1: Monochrome Step Charts
B5: white value | E5: 255 | F5: 255 | G5: 255 | H5: 255 | I5: 255 | J5: 255
B6: number of steps | E6: 21
B7: gamma | H7: 1.8 | I7: 2.2 | J7: 2.8
B8: exponent | H8: =1/H7 -> 0.5555555556 | I8: =1/I7 -> 0.4545454545 | J8: =1/J7 -> 0.3571428571
B9: multiplier, for power | H9: 1 | I9: 1 | J9: 1
B10: c, for log | G10: =G5/(LOG(G5+1, G11)) -> 105.886458
B11: base | G11: 10
E13: base | F13: linear | G13: log | H13: power1 | I13: power2 | J13: power3 | M13: linear | N13: log | O13: power1 | P13: power2 | Q13: power2
E14: =E15+(1/$E$6) -> 1 | F14: =E14*$F$5 -> 255 | G14: =$G$10*LOG(F14+1, $G$11) -> 255 | H14: =$H$9*POWER(E14,$H$8)*$H$5 -> 255 | I14: =$I$9*POWER(E14,$I$8)*$I$5 -> 255 | J14: =$J$9*POWER(E14,$J$8)*$J$5 -> 255 | M14: =myRGB(F14, F14, F14) ->  | N14: =myRGB(G14, G14, G14) ->  | O14: =myRGB(H14, H14, H14) ->  | P14: =myRGB(I14, I14, I14) ->  | Q14: =myRGB(J14, J14, J14) -> 
E15: =E16+(1/$E$6) -> 0.9523809524 | F15: 242.8571429 | G15: 252.7653209 | H15: 248.1808957 | I15: 249.4070243 | J15: 250.5950993 | M15: =myRGB(F15, F15, F15) ->  | N15: =myRGB(G15, G15, G15) ->  | O15: =myRGB(H15, H15, H15) ->  | P15: =myRGB(I15, I15, I15) ->  | Q15: =myRGB(J15, J15, J15) -> 
E16: =E17+(1/$E$6) -> 0.9047619048 | F16: =E16*$F$5 -> 230.7142857 | G16: =$G$10*LOG(F16+1, $G$11) -> 250.4164764 | H16: 241.2084805 | I16: 243.6593307 | J16: 246.0462319 | M16: =myRGB(F16, F16, F16) ->  | N16: =myRGB(G16, G16, G16) ->  | O16: =myRGB(H16, H16, H16) ->  | P16: =myRGB(I16, I16, I16) ->  | Q16: =myRGB(J16, J16, J16) -> 
E17: 0.8571428571 | F17: 218.5714286 | G17: 247.9411706 | H17: =$H$9*POWER(E17,$H$8)*$H$5 -> 234.070951 | I17: 237.7441402 | J17: 241.3407248 | M17: =myRGB(F17, F17, F17) ->  | N17: =myRGB(G17, G17, G17) ->  | O17: =myRGB(H17, H17, H17) ->  | P17: =myRGB(I17, I17, I17) ->  | Q17: =myRGB(J17, J17, J17) -> 
E18: =E19+(1/$E$6) -> 0.8095238095 | F18: =E18*$F$5 -> 206.4285714 | G18: 245.3250073 | H18: 226.7548786 | I18: 231.6468369 | J18: 236.4640083 | M18: =myRGB(F18, F18, F18) ->  | N18: =myRGB(G18, G18, G18) ->  | O18: =myRGB(H18, H18, H18) ->  | P18: =myRGB(I18, I18, I18) ->  | Q18: =myRGB(J18, J18, J18) -> 
E19: =E20+(1/$E$6) -> 0.7619047619 | F19: 194.2857143 | G19: =$G$10*LOG(F19+1, $G$11) -> 242.5509831 | H19: 219.2448756 | I19: 225.3505773 | J19: 231.3992008 | M19: =myRGB(F19, F19, F19) ->  | N19: =myRGB(G19, G19, G19) ->  | O19: =myRGB(H19, H19, H19) ->  | P19: =myRGB(I19, I19, I19) ->  | Q19: =myRGB(J19, J19, J19) -> 
E20: 0.7142857143 | F20: 182.1428571 | G20: 239.5988168 | H20: 211.5231661 | I20: 218.8357874 | J20: 226.1265706 | M20: =myRGB(F20, F20, F20) ->  | N20: =myRGB(G20, G20, G20) ->  | O20: =myRGB(H20, H20, H20) ->  | P20: =myRGB(I20, I20, I20) ->  | Q20: =myRGB(J20, J20, J20) -> 
E21: 0.6666666667 | F21: 170 | G21: 236.4440489 | H21: 203.5690281 | I21: 212.079504 | J21: 220.6228269 | M21: =myRGB(F21, F21, F21) ->  | N21: =myRGB(G21, G21, G21) ->  | O21: =myRGB(H21, H21, H21) ->  | P21: =myRGB(I21, I21, I21) ->  | Q21: =myRGB(J21, J21, J21) -> 
E22: 0.619047619 | F22: 157.8571429 | G22: 233.0568086 | H22: =$H$9*POWER(E22,$H$8)*$H$5 -> 195.3580553 | I22: 205.0544967 | J22: =$J$9*POWER(E22,$J$8)*$J$5 -> 214.8601701 | M22: =myRGB(F22, F22, F22) ->  | N22: =myRGB(G22, G22, G22) ->  | O22: =myRGB(H22, H22, H22) ->  | P22: =myRGB(I22, I22, I22) ->  | Q22: =myRGB(J22, J22, J22) -> 
E23: 0.5714285714 | F23: 145.7142857 | G23: 229.4000892 | H23: 186.8611607 | I23: 197.7280758 | J23: 208.804992 | M23: =myRGB(F23, F23, F23) ->  | N23: =myRGB(G23, G23, G23) ->  | O23: =myRGB(H23, H23, H23) ->  | P23: =myRGB(I23, I23, I23) ->  | Q23: =myRGB(J23, J23, J23) -> 
E24: =E25+(1/$E$6) -> 0.5238095238 | F24: 133.5714286 | G24: 225.4272779 | H24: 178.0432025 | I24: =$I$9*POWER(E24,$I$8)*$I$5 -> 190.0604361 | J24: 202.416058 | M24: =myRGB(F24, F24, F24) ->  | N24: =myRGB(G24, G24, G24) ->  | O24: =myRGB(H24, H24, H24) ->  | P24: =myRGB(I24, I24, I24) ->  | Q24: =myRGB(J24, J24, J24) -> 
E25: 0.4761904762 | F25: 121.4285714 | G25: 221.0785125 | H25: 168.8610405 | I25: 182.0022951 | J25: 195.6418951 | M25: =myRGB(F25, F25, F25) ->  | N25: =myRGB(G25, G25, G25) ->  | O25: =myRGB(H25, H25, H25) ->  | P25: =myRGB(I25, I25, I25) ->  | Q25: =myRGB(J25, J25, J25) -> 
E26: 0.4285714286 | F26: 109.2857143 | G26: 216.2751299 | H26: 159.2607047 | I26: 173.4914215 | J26: 188.4169199 | M26: =myRGB(F26, F26, F26) ->  | N26: =myRGB(G26, G26, G26) ->  | O26: =myRGB(H26, H26, H26) ->  | P26: =myRGB(I26, I26, I26) ->  | Q26: =myRGB(J26, J26, J26) -> 
E27: 0.380952381 | F27: 97.14285714 | G27: 210.9108623 | H27: 149.1731172 | I27: 164.4473422 | J27: 180.6554808 | M27: =myRGB(F27, F27, F27) ->  | N27: =myRGB(G27, G27, G27) ->  | O27: =myRGB(H27, H27, H27) ->  | P27: =myRGB(I27, I27, I27) ->  | Q27: =myRGB(J27, J27, J27) -> 
E28: 0.3333333333 | F28: 85 | G28: 204.8371891 | H28: 138.5073489 | I28: 154.7629085 | J28: 172.2422668 | M28: =myRGB(F28, F28, F28) ->  | N28: =myRGB(G28, G28, G28) ->  | O28: =myRGB(H28, H28, H28) ->  | P28: =myRGB(I28, I28, I28) ->  | Q28: =myRGB(J28, J28, J28) -> 
E29: 0.2857142857 | F29: 72.85714286 | G29: 197.8374644 | H29: 127.1393995 | I29: 144.2900965 | J29: 163.0159745 | M29: =myRGB(F29, F29, F29) ->  | N29: =myRGB(G29, G29, G29) ->  | O29: =myRGB(H29, H29, H29) ->  | P29: =myRGB(I29, I29, I29) ->  | Q29: =myRGB(J29, J29, J29) -> 
E30: 0.2380952381 | F30: 60.71428571 | G30: 189.577601 | H30: 114.8922077 | I30: =$I$9*POWER(E30,$I$8)*$I$5 -> 132.8143645 | J30: 152.7394239 | M30: =myRGB(F30, F30, F30) ->  | N30: =myRGB(G30, G30, G30) ->  | O30: =myRGB(H30, H30, H30) ->  | P30: =myRGB(I30, I30, I30) ->  | Q30: =myRGB(J30, J30, J30) -> 
E31: 0.1904761905 | F31: 48.57142857 | G31: 179.5020522 | H31: 101.4966431 | I31: 120.0038122 | J31: 141.0393927 | M31: =myRGB(F31, F31, F31) ->  | N31: =myRGB(G31, G31, G31) ->  | O31: =myRGB(H31, H31, H31) ->  | P31: =myRGB(I31, I31, I31) ->  | Q31: =myRGB(J31, J31, J31) -> 
E32: 0.1428571429 | F32: 36.42857143 | G32: 166.58092 | H32: 86.50501172 | I32: 105.2942627 | J32: 127.2680682 | M32: =myRGB(F32, F32, F32) ->  | N32: =myRGB(G32, G32, G32) ->  | O32: =myRGB(H32, H32, H32) ->  | P32: =myRGB(I32, I32, I32) ->  | Q32: =myRGB(J32, J32, J32) -> 
E33: 0.09523809524 | F33: 24.28571429 | G33: 148.5454888 | H33: 69.05780848 | I33: 87.57158823 | J33: 110.1107489 | M33: =myRGB(F33, F33, F33) ->  | N33: =myRGB(G33, G33, G33) ->  | O33: =myRGB(H33, H33, H33) ->  | P33: =myRGB(I33, I33, I33) ->  | Q33: =myRGB(J33, J33, J33) -> 
E34: =E35+(1/$E$6) -> 0.04761904762 | F34: 12.14285714 | G34: 118.4540992 | H34: 46.9865876 | I34: 63.90449542 | J34: 85.96447273 | M34: =myRGB(F34, F34, F34) ->  | N34: =myRGB(G34, G34, G34) ->  | O34: =myRGB(H34, H34, H34) ->  | P34: =myRGB(I34, I34, I34) ->  | Q34: =myRGB(J34, J34, J34) -> 
E35: 0 | F35: =E35*$F$5 -> 0 | G35: =$G$10*LOG(F35+1, $G$11) -> 0 | H35: =$H$9*POWER(E35,$H$8)*$H$5 -> 0 | I35: =$I$9*POWER(E35,$I$8)*$I$5 -> 0 | J35: =$J$9*POWER(E35,$J$8)*$J$5 -> 0 | M35: =myRGB(F35, F35, F35) ->  | N35: =myRGB(G35, G35, G35) ->  | O35: =myRGB(H35, H35, H35) ->  | P35: =myRGB(I35, I35, I35) ->  | Q35: =myRGB(J35, J35, J35) -> 

Sheet Big Tablet
A1: Big Step Tablet
B10: 255 | C10: 248.1808957 | D10: 241.2084805 | E10: 234.070951 | F10: 226.7548786 | G10: 219.2448756 | H10: 211.5231661 | I10: 203.5690281 | J10: 195.3580553 | K10: 186.8611607 | L10: 178.0432025 | M10: 168.8610405 | N10: 159.2607047 | O10: 149.1731172 | P10: 138.5073489 | Q10: 127.1393995 | R10: 114.8922077 | S10: 101.4966431 | T10: 86.50501172 | U10: 69.05780848 | V10: 46.9865876 | W10: 0
B12: =myRGB(B10, B10, B10) ->  | C12: =myRGB(C10, C10, C10) ->  | D12: =myRGB(D10, D10, D10) ->  | E12: =myRGB(E10, E10, E10) ->  | F12: =myRGB(F10, F10, F10) ->  | G12: =myRGB(G10, G10, G10) ->  | H12: =myRGB(H10, H10, H10) ->  | I12: =myRGB(I10, I10, I10) ->  | J12: =myRGB(J10, J10, J10) ->  | K12: =myRGB(K10, K10, K10) ->  | L12: =myRGB(L10, L10, L10) ->  | M12: =myRGB(M10, M10, M10) ->  | N12: =myRGB(N10, N10, N10) ->  | O12: =myRGB(O10, O10, O10) ->  | P12: =myRGB(P10, P10, P10) ->  | Q12: =myRGB(Q10, Q10, Q10) ->  | R12: =myRGB(R10, R10, R10) ->  | S12: =myRGB(S10, S10, S10) ->  | T12: =myRGB(T10, T10, T10) ->  | U12: =myRGB(U10, U10, U10) ->  | V12: =myRGB(V10, V10, V10) ->  | W12: =myRGB(W10, W10, W10) ->  | X12: =myRGB(#REF!,#REF!,#REF!) -> 

Sheet Color Checker
A1: Approximation of a MacBeth ColorChecker chart (sRGB values)
D3: =myRGB(115, 81, 67) ->  | E3: =myRGB(196, 149, 129) ->  | F3: =myRGB(93, 123, 157) ->  | G3: =myRGB(90, 108, 65) ->  | H3: =myRGB(130, 129, 176) ->  | I3: =myRGB(99, 191, 171) -> 
D4: =myRGB(220, 123, 45) ->  | E4: =myRGB(72, 92, 168) ->  | F4: =myRGB(195, 84, 98) ->  | G4: =myRGB(91, 59, 105) ->  | H4: =myRGB(160, 189, 62) ->  | I4: =myRGB(229, 161, 41) -> 
D5: =myRGB(43, 62, 147) ->  | E5: =myRGB(71, 149, 72) ->  | F5: =myRGB(176, 48, 56) ->  | G5: =myRGB(238, 200, 22) ->  | H5: =myRGB(188, 84, 150) ->  | I5: =myRGB(0, 136, 166) -> 
D6: =myRGB(245, 245, 240) ->  | E6: =myRGB(200, 201, 201) ->  | F6: =myRGB(160, 161, 161) ->  | G6: =myRGB(120, 121, 121) ->  | H6: =myRGB(83, 84, 85) ->  | I6: =myRGB(50, 50, 50) -> 

Sheet 18% Grey
A1: 18% Grey Card
B9: R | C9: 127
B10: G | C10: 127
B11: B | C11: 127
D13: =myRGB(C9, C10, C11) -> 

Sheet Sensitometry
A1: Sensitometry
B11: RGB nom | C11: Density, Polar Matte | D11: Density, UltraPro Gloss
B13: 255 | C13: 0.05 | D13: 0.07
B14: 248.1808957 | C14: 0.09 | D14: 0.1
B15: 241.2084805 | C15: 0.11 | D15: 0.13
B16: 234.070951 | C16: 0.14 | D16: 0.16
B17: 226.7548786 | C17: 0.17 | D17: 0.19
B18: 219.2448756 | C18: 0.21 | D18: 0.23
B19: 211.5231661 | C19: 0.25 | D19: 0.26
B20: 203.5690281 | C20: 0.29 | D20: 0.31
B21: 195.3580553 | C21: 0.33 | D21: 0.35
B22: 186.8611607 | C22: 0.37 | D22: 0.4
B23: 178.0432025 | C23: 0.42 | D23: 0.45
B24: 168.8610405 | C24: 0.47 | D24: 0.51
B25: 159.2607047 | C25: 0.54 | D25: 0.58
B26: 149.1731172 | C26: 0.6 | D26: 0.65
B27: 138.5073489 | C27: 0.66 | D27: 0.72
B28: 127.1393995 | C28: 0.74 | D28: 0.82
B29: 114.8922077 | C29: 0.83 | D29: 0.92
B30: 101.4966431 | C30: 0.92 | D30: 1.05
B31: 86.50501172 | C31: 1.03 | D31: 1.18
B32: 69.05780848 | C32: 1.18 | D32: 1.38
B33: 46.9865876 | C33: 1.37 | D33: 1.61
B34: 0 | C34: 1.65 | D34: 1.98
B36: Range | C36: =10^(C34-C13) -> 39.81071706 | D36: =10^(D34-D13) -> 81.28305162 | E36: :1

Sheet Spacing
A1: Step Target Distribution
C6: linear | D6: power, 1.5 | E6: power, 2.2 | F6: log
C7: 255 | D7: 255 | E7: 255 | F7: 255
C8: 242.8571429 | D8: 246.8391152 | E8: 249.4070243 | F8: 252.7653209
C9: 230.7142857 | D9: 238.5410086 | E9: 243.6593307 | F9: 250.4164764
C10: 218.5714286 | D10: 230.0959568 | E10: 237.7441402 | F10: 247.9411706
C11: 206.4285714 | D11: 221.4929623 | E11: 231.6468369 | F11: 245.3250073
C12: 194.2857143 | D12: 212.7195011 | E12: 225.3505773 | F12: 242.5509831
C13: 182.1428571 | D13: 203.7612002 | E13: 218.8357874 | F13: 239.5988168
C14: 170 | D14: 194.6014212 | E14: 212.079504 | F14: 236.4440489
C15: 157.8571429 | D15: 185.2207132 | E15: 205.0544967 | F15: 233.0568086
C16: 145.7142857 | D16: 175.5960792 | E16: 197.7280758 | F16: 229.4000892
C17: 133.5714286 | D17: 165.6999742 | E17: 190.0604361 | F17: 225.4272779
C18: 121.4285714 | D18: 155.4988986 | E18: 182.0022951 | F18: 221.0785125
C19: 109.2857143 | D19: 144.9513697 | E19: 173.4914215 | F19: 216.2751299
C20: 97.14285714 | D20: 134.0048886 | E20: 164.4473422 | F20: 210.9108623
C21: 85 | D21: 122.5912135 | E21: 154.7629085 | F21: 204.8371891
C22: 72.85714286 | D22: 110.6185983 | E22: 144.2900965 | F22: 197.8374644
C23: 60.71428571 | D23: 97.95816779 | E23: 132.8143645 | F23: 189.577601
C24: 48.57142857 | D24: 84.41778995 | E24: 120.0038122 | F24: 179.5020522
C25: 36.42857143 | D25: 69.68535023 | E25: 105.2942627 | F25: 166.58092
C26: 24.28571429 | D26: 53.17987527 | E26: 87.57158823 | F26: 148.5454888
C27: 12.14285714 | D27: 33.50122214 | E27: 63.90449542 | F27: 118.4540992
C28: 0 | D28: 0 | E28: 0 | F28: 0

Sheet Conversions
A1: Conversions
B4: Print density | C4: 0.7447 | E4: Print reflectivity | F4: 18 | G4: %
B5: Print reflectivity | C5: =1/(10^C4) -> 0.180011396 | E5: Print density | F5: =-LOG10(F4*0.01) -> 0.7447274949
B7: Film density | C7: 1 | E7: Film transmission | F7: 10 | G7: %
B8: Film transmission | C8: =1/(10^C7) -> 0.1 | E8: Film density | F8: =-LOG10(F7*0.01) -> 1
B10: Dynamic Range
B11: Darkest density | C11: 1.8
B12: Lightest density | C12: 0.05
B13: Difference | C13: =C11-C12 -> 1.75
B14: Range | C14: =10^C13 -> 56.23413252 | D14: :1
